bitfinex/quotes_ETHUSD_20250115
["timestamp","ask_amount","ask_price","bid_price","bid_amount"]
[1736976371843,3.218203,3437.5,3436.6,3.67974]
[1736976372067,0.182,3437.4,3436.6,3.67974]
[1736976372578,0.182,3437.3,3436.6,3.67974]
[1736976373147,0.9988,3437.3,3436.6,3.67974]
[1736976373347,0.9988,3437.3,3436.6,0.7699]
[1736976373636,0.182,3437.2,3436.6,0.7699]
[1736976376258,0.182,3437.1,3436.6,0.7699]
[1736976379441,0.182,3437.1,3436.7,2.90974]
[1736976379674,5.90859,3438.1,3437.1,2.90939]
[1736976379675,2.90865,3438.1,3437.1,2.90939]
[1736976379877,0.182,3438.0,3437.2,2.9093]
[1736976381350,0.182,3438.0,3437.2,3.868179]
[1736976383856,0.8168,3438.2,3437.4,0.827]
[1736976384052,0.64505518,3439.5,3437.5,0.02908519]
[1736976384053,0.182,3438.1,3437.5,0.02908519]
[1736976384265,0.182,3438.0,3437.9,3.73569]
[1736976384868,0.7786,3438.9,3438.0,0.55]
[1736976385070,0.182,3438.8,3438.1,3.10124]
[1736976385374,0.182,3438.8,3438.1,0.1927]
[1736976386788,0.182,3438.8,3438.3,2.9084]
[1736976388882,0.182,3438.8,3438.1,2.01253326]
[1736976389058,0.182,3438.8,3438.5,2.90823]
[1736976389255,0.182,3438.8,3438.5,0.827]
[1736976389565,0.182,3438.8,3438.7,2.90807]
[1736976390207,0.7786,3439.6,3439.0,2.9078]
[1736976390383,0.7786,3439.6,3439.1,2.90766]
[1736976390697,0.182,3439.5,3439.2,0.827]
[1736976391184,0.7786,3440.0,3439.2,3.73458]
[1736976391361,0.182,3439.9,3439.2,3.73458]
[1736976391751,0.182,3439.9,3439.2,0.827]
[1736976391946,0.182,3439.9,3439.5,2.90739]
[1736976392362,0.7786,3440.0,3439.5,2.90739]
[1736976392565,0.182,3439.8,3439.5,2.90739]
[1736976392761,0.7786,3440.0,3439.5,2.90739]
[1736976392963,0.182,3439.9,3439.5,2.90739]
[1736976394086,0.182,3439.8,3439.5,2.90739]
[1736976394484,2.093,3440.1,3439.6,2.90725]
[1736976394678,0.182,3439.7,3439.6,2.90725]
[1736976395998,2.093,3440.1,3439.6,2.90725]
[1736976396355,0.182,3440.0,3439.6,2.90725]
[1736976396552,0.182,3440.0,3439.6,3.47609137]
[1736976397056,0.182,3439.9,3439.6,3.47609137]
[1736976397875,2.093,3440.1,3439.6,3.47609137]
[1736976398090,0.182,3439.8,3439.6,3.47609137]
[1736976398470,0.182,3439.7,3439.6,3.47609137]
[1736976398692,2.093,3440.1,3439.6,4.71120051]
[1736976399000,2.093,3440.1,3440.0,2.90697]
[1736976399158,0.182,3440.1,3439.8,9.31]
[1736976399360,0.182,3440.1,3440.0,2.90697]
[1736976399571,0.8229,3440.6,3440.0,2.90697]
[1736976399772,0.182,3440.5,3440.0,2.90697]
[1736976399968,0.182,3440.5,3440.0,4.419385]
[1736976400373,0.182,3440.5,3440.0,1.512415]
[1736976400673,0.182,3440.5,3440.1,2.90688]
[1736976401458,0.182,3440.4,3440.1,2.90688]
[1736976401675,0.182,3440.3,3440.1,2.90688]
[1736976401959,0.8229,3440.9,3440.2,2.9068]
[1736976402164,0.182,3440.8,3440.7,2.90637]
[1736976402498,0.8229,3441.2,3440.2,0.8325]
[1736976402499,0.8229,3441.2,3440.4,0.02906042]
[1736976402691,0.182,3441.1,3441.0,2.90613]
[1736976403197,1.0,3441.3,3440.9,0.8325]
[1736976403362,1.0,3441.3,3441.2,2.90596]
[1736976403562,1.182,3441.3,3441.2,2.90596]
[1736976405502,1.0,3441.3,3441.2,2.90596]
[1736976405703,1.182,3441.3,3441.2,2.90596]
[1736976406795,1.0,3441.3,3441.2,2.90596]
[1736976406978,1.182,3441.3,3441.2,2.90596]
[1736976407373,1.0,3441.3,3441.2,2.90596]
[1736976407578,1.182,3441.3,3441.2,2.90596]
[1736976408098,1.182,3441.3,3441.0,2.90609]
[1736976408903,1.182,3441.3,3441.1,2.90601]
[1736976409690,1.0,3441.3,3441.1,2.90601]
[1736976409968,0.182,3441.2,3441.1,2.90601]
[1736976411605,1.0,3441.3,3441.2,2.90596]
[1736976411769,1.182,3441.3,3441.2,2.90596]
[1736976412808,0.7743,3441.2,3440.9,8.76]
[1736976412998,0.19563,3441.1,3440.4,4.72639326]
[1736976413172,0.19563,3441.1,3440.5,2.90653]
[1736976414113,0.19563,3441.1,3440.3,3.49384297]
[1736976414417,0.19563,3441.1,3439.9,10.12048048]
[1736976414418,0.7743,3441.0,3439.9,10.12048048]
[1736976414573,0.7743,3441.0,3440.2,2.9068]
[1736976415572,0.989493,3441.0,3440.3,2.90665]
[1736976415773,0.7743,3441.0,3440.6,2.90645]
[1736976416080,0.7743,3441.0,3440.2,2.90675]
[1736976416490,0.182,3440.9,3439.9,10.12048048]
[1736976416695,0.7743,3440.8,3440.0,2.90694]
[1736976418095,0.7743,3440.8,3439.7,2.90718]
[1736976418096,2.9064,3440.7,3439.7,2.90718]
[1736976418302,0.7743,3440.5,3439.7,2.90718]
[1736976419199,0.7743,3440.5,3439.8,2.90714]
[1736976419890,0.7743,3440.5,3439.9,2.90704]
[1736976422032,0.7743,3440.5,3439.8,0.55]
[1736976422192,0.7743,3440.5,3440.1,2.90684]
[1736976422496,0.7771,3440.8,3440.2,0.290684]
[1736976423629,0.7771,3440.8,3440.0,2.90689]
[1736976423831,0.7771,3440.8,3440.0,4.71221951]
[1736976424235,0.7771,3440.8,3440.0,2.90689]
[1736976425134,0.7771,3440.8,3440.0,4.71221951]
[1736976425528,0.7771,3440.8,3440.0,2.90689]
[1736976425730,0.7771,3440.8,3440.1,4.30911195]
[1736976426036,0.7771,3440.8,3440.1,6.11444146]
[1736976426415,0.7771,3440.8,3440.0,1.80532951]
[1736976426765,0.8191,3440.6,3440.0,1.80532951]
[1736976427054,3.72558,3440.6,3440.0,1.80532951]
[1736976427459,0.8191,3440.6,3439.9,10.56532951]
[1736976427603,0.8191,3440.6,3439.9,13.47235951]
[1736976427802,0.8191,3440.6,3440.0,1.80532951]
[1736976428435,0.8191,3440.6,3440.1,1.80532951]
[1736976429741,0.8191,3440.6,3440.2,1.80532951]
[1736976431153,0.8191,3440.6,3440.3,1.80532951]
[1736976432341,1.209846,3440.6,3440.3,1.80532951]
[1736976432541,0.8191,3440.6,3440.3,1.80532951]
[1736976432703,3.72573,3440.4,3440.3,1.80532951]
[1736976433469,3.72573,3440.4,3439.9,1.80532951]
[1736976433769,3.72583,3440.3,3439.9,1.80532951]
[1736976433926,0.8191,3440.2,3439.9,1.80532951]
[1736976434320,0.8191,3440.2,3439.8,1.80532951]
[1736976434836,0.8191,3440.2,3439.9,1.80532951]
[1736976437674,0.8191,3440.2,3440.0,1.80532951]
[1736976438086,0.8191,3440.2,3439.9,1.80532951]
[1736976438275,0.8191,3440.2,3439.8,2.40710601]
[1736976438276,0.8191,3440.2,3439.8,1.80532951]
[1736976438646,0.8191,3440.2,3439.9,1.80532951]
[1736976438958,0.8191,3440.2,3439.8,1.80532951]
[1736976439942,0.8191,3440.2,3439.7,1.80532951]
[1736976441486,2.76172979,3441.0,3439.7,1.80532951]
[1736976441487,0.182,3440.1,3439.7,2.52746131]
[1736976441786,0.182,3440.0,3439.9,2.90706]
[1736976441973,0.182,3440.0,3439.9,4.71238951]
[1736976445810,0.7773,3440.6,3440.3,2.9067]
[1736976446108,0.182,3440.5,3440.3,2.9067]
[1736976446410,0.182,3440.4,3440.3,3.19737]
[1736976446927,0.182,3440.4,3440.3,5.02045127]
[1736976448214,0.7773,3440.6,3440.4,2.90662]
[1736976448416,0.182,3440.5,3440.4,2.90662]
[1736976449127,0.182,3440.5,3440.4,4.72970127]
[1736976449630,1.0,3441.3,3440.9,2.90616]
[1736976449831,0.182,3441.2,3441.0,3.73656803]
[1736976450296,0.182,3441.2,3441.1,2.90604]
[1736976451737,1.182,3441.3,3441.2,2.90596]
[1736976452225,1.182,3441.3,3441.2,3.45596]
[1736976452226,1.0,3441.3,3441.2,3.45596]
[1736976452437,1.0,3441.3,3441.2,6.44631085]
[1736976452744,1.0,3441.3,3441.2,18.20631085]
[1736976452950,1.0,3441.3,3441.2,18.55404426]
[1736976453661,1.0,3441.3,3441.2,22.16470328]
[1736976454003,1.0,3441.3,3441.2,18.55404426]
[1736976454782,1.0,3441.3,3441.2,18.20631085]
[1736976457167,1.0,3441.3,3441.2,9.44631085]
[1736976458767,1.0,3441.3,3441.2,23.59631085]
[1736976458956,1.0,3441.3,3441.2,26.62968281]
[1736976459270,1.0,3441.3,3441.2,23.59631085]
[1736976460668,1.0,3441.3,3441.2,26.62877295]
[1736976462153,1.0,3441.3,3441.2,23.59631085]
[1736976463855,1.0,3441.3,3441.2,26.0199873]
[1736976464270,1.8178,3441.3,3441.1,3.60933597]
[1736976464467,1.8178,3441.3,3441.2,2.90596]
[1736976464975,1.8178,3441.3,3441.0,4.72408568]
[1736976465193,1.9998,3441.3,3441.0,4.72408568]
[1736976465599,1.9998,3441.3,3441.1,2.90604]
[1736976465756,1.182,3441.3,3441.1,2.90604]
[1736976466498,1.0,3441.3,3441.1,2.90604]
[1736976466790,0.182,3441.2,3441.1,2.90604]
[1736976466985,1.0,3441.3,3441.1,2.90604]
[1736976467287,0.182,3441.2,3440.8,1.81799568]
[1736976467585,0.8178,3441.1,3440.8,1.81799568]
[1736976467788,0.8178,3441.1,3440.7,1.81799568]
[1736976468202,0.8178,3441.1,3440.4,1.81799568]
[1736976468203,1.01778,3441.1,3440.4,1.81799568]
[1736976468353,2.90629,3440.9,3440.4,1.81799568]
[1736976468551,0.8178,3440.9,3440.4,1.81799568]
[1736976468991,3.72405,3440.9,3440.4,1.81799568]
[1736976469289,3.72405,3440.9,3440.0,1.81799568]
[1736976469474,0.392403,3440.8,3440.0,1.81799568]
[1736976469990,0.392403,3440.8,3439.9,8.29699]
[1736976471961,0.8178,3440.9,3440.1,2.90685]
[1736976474426,0.8178,3440.9,3440.4,2.90659]
[1736976474632,0.182,3440.8,3440.4,2.90659]
[1736976475033,0.8178,3440.9,3440.4,2.90659]
[1736976475234,0.182,3440.7,3440.4,2.90659]
[1736976478014,0.182,3440.7,3440.1,2.61239568]
[1736976478217,0.182,3440.7,3440.2,2.9068]
[1736976478769,0.182,3440.7,3440.1,3.27771005]
[1736976478913,0.182,3440.7,3440.1,1.81799568]
[1736976479243,0.182,3440.7,3440.0,2.36799568]
[1736976479553,0.79,3440.5,3440.0,1.81799568]
[1736976480244,0.182,3440.4,3440.0,1.81799568]
[1736976480550,0.182,3440.4,3439.9,10.11503568]
[1736976480755,0.182,3440.4,3439.9,12.68645405]
[1736976481452,0.182,3440.4,3440.0,1.81799568]
[1736976482114,0.132,3440.4,3439.9,10.11503568]
[1736976482662,0.132,3440.4,3439.9,7.20799568]
[1736976483662,0.132,3440.4,3439.9,10.11498568]
[1736976483867,0.132,3440.4,3439.9,12.60695905]
[1736976487234,0.132,3440.4,3440.0,1.81799568]
[1736976489134,0.7852,3440.3,3440.0,1.81799568]
[1736976489334,3.69192,3440.3,3440.0,1.81799568]
[1736976489535,3.69192,3440.3,3439.8,1.81799568]
[1736976489739,0.7852,3440.3,3439.8,1.81799568]
[1736976490167,0.7852,3440.3,3439.9,0.55]
[1736976490367,0.182,3440.2,3440.1,2.90686]
[1736976491445,0.182,3440.2,3440.1,4.72485568]
[1736976491910,0.182,3440.2,3440.1,2.90686]
[1736976492477,0.7352,3440.9,3440.5,2.90653]
[1736976493279,0.182,3440.8,3440.7,2.90632]
[1736976493476,0.182,3440.8,3440.7,3.45632]
[1736976494016,1.0,3441.3,3441.1,2.90599]
[1736976494178,0.182,3441.2,3441.1,2.90604]
[1736976501197,0.182,3441.2,3441.1,4.72673416]
[1736976501500,0.182,3441.2,3441.1,1.82069416]
[1736976501702,0.9513,3441.2,3441.1,1.82069416]
[1736976501882,0.9513,3441.2,3441.0,1.82069416]
[1736976502292,0.9513,3441.2,3440.8,2.90629]
[1736976503598,0.9513,3441.2,3440.8,4.72698416]
[1736976504470,0.9513,3441.2,3440.9,2.90618]
[1736976504876,0.9513,3441.2,3440.9,4.72687416]
[1736976505225,0.9513,3441.2,3440.9,1.82069416]
[1736976506976,1.0,3441.3,3441.2,2.90596]
[1736976507202,1.182,3441.3,3441.2,2.90596]
[1736976508514,1.182,3441.3,3441.2,4.72931806]
[1736976508707,1.182,3441.3,3441.2,2.90596]
[1736976510025,1.182,3441.3,3441.2,5.32995424]
[1736976510232,1.182,3441.3,3441.2,6.86976738]
[1736976511049,1.182,3441.3,3441.2,6.92823524]
[1736976511247,1.9753,3441.3,3441.2,3.0324621]
[1736976511395,1.9753,3441.3,3441.1,3.0324621]
[1736976511803,1.9753,3441.3,3440.6,0.8152]
[1736976511804,1.9753,3441.3,3441.2,1.82381377]
[1736976512389,1.9753,3441.3,3441.1,1.82381377]
[1736976512992,1.9753,3441.3,3441.2,1.82381377]
[1736976513541,1.9753,3441.3,3441.1,1.82381377]
[1736976513938,1.9753,3441.3,3441.2,1.82381377]
[1736976515656,1.9753,3441.3,3441.1,1.82381377]
[1736976516645,1.9753,3441.3,3441.2,1.82381377]
[1736976518453,1.9753,3441.3,3441.1,2.4317517]
[1736976519205,1.9753,3441.3,3441.2,1.8247062]
[1736976520942,1.9753,3441.3,3441.1,5.3377717]
[1736976521944,1.9753,3441.3,3441.2,1.82476702]
[1736976522139,1.182,3441.3,3441.2,1.82476702]
[1736976522343,1.182,3441.3,3441.2,5.4596251]
[1736976522539,1.182,3441.3,3441.2,6.33865316]
[1736976522744,1.182,3441.3,3441.2,5.60975508]
[1736976523512,1.182,3441.3,3441.2,3.17800338]
[1736976524414,1.182,3441.3,3441.2,2.90596]
[1736976525016,1.182,3441.3,3441.2,3.1781668]
[1736976526344,1.182,3441.3,3441.2,4.5370668]
[1736976526345,1.0,3441.3,3441.2,4.5370668]
[1736976526651,1.0,3441.3,3441.2,14.58780686]
[1736976527443,1.0,3441.3,3441.2,18.19846588]
[1736976529346,1.0,3441.3,3441.2,18.48862685]
[1736976530518,1.0,3441.3,3441.2,18.19846588]
[1736976533152,1.0,3441.3,3441.2,14.58780686]
[1736976534334,1.0,3441.3,3441.2,12.4881668]
[1736976537458,1.0,3441.3,3441.2,9.0322068]
[1736976537834,1.0,3441.3,3441.2,0.2722068]
[1736976538517,1.0,3441.3,3441.2,3.53378333]
[1736976544072,1.0,3441.3,3441.2,0.48970894]
[1736976544461,1.0,3441.3,3441.2,3.53378333]
[1736976550272,1.181,3441.3,3441.2,0.48970894]
[1736976550773,1.181,3441.3,3441.2,3.5352264]
[1736976551354,1.181,3441.3,3441.2,0.48970894]
[1736976551757,1.181,3441.3,3441.2,2.92626609]
[1736976552433,1.181,3441.3,3441.2,0.48970894]
[1736976553673,1.181,3441.3,3441.2,2.92628351]
[1736976554169,1.181,3441.3,3441.2,0.48970894]
[1736976555440,1.181,3441.3,3441.2,0.21750214]
[1736976556975,1.181,3441.3,3441.2,0.48938145]
[1736976557866,1.181,3441.3,3441.2,2.92581631]
[1736976558476,1.181,3441.3,3441.2,0.48938145]
[1736976559566,1.181,3441.3,3441.2,3.53489891]
[1736976562296,1.181,3441.3,3441.2,0.48938145]
[1736976563686,1.181,3441.3,3441.2,3.53489891]
[1736976564621,1.181,3441.3,3441.2,0.48938145]
[1736976565517,1.181,3441.3,3441.2,3.53489891]
[1736976567949,1.181,3441.3,3441.2,0.48938145]
[1736976568951,1.181,3441.3,3441.2,3.53489891]
[1736976569249,1.181,3441.3,3441.2,0.48938145]
[1736976571430,1.9826,3441.3,3441.2,0.48938145]
[1736976571627,8.08892,3441.3,3441.2,0.48938145]
[1736976571950,2.00205,3441.3,3441.2,2.92590073]
[1736976572124,1.181,3441.3,3441.2,0.48938145]
[1736976572553,1.181,3441.3,3441.2,2.3172326]
[1736976572756,1.181,3441.3,3441.2,2.04535329]
[1736976572957,1.181,3441.3,3441.2,0.21750214]
[1736976573250,1.181,3441.3,3441.2,2.65402142]
[1736976573950,1.181,3441.3,3441.2,0.21750214]
[1736976575753,1.181,3441.3,3441.2,2.65402142]
[1736976578718,1.181,3441.3,3441.2,0.21750214]
[1736976579262,1.181,3441.3,3441.2,3.12346214]
[1736976580757,1.181,3441.3,3441.2,3.94306214]
[1736976584463,1.181,3441.3,3441.2,0.21750214]
[1736976585282,1.181,3441.3,3441.2,3.26700809]
[1736976585578,1.181,3441.3,3441.2,0.21750214]
[1736976587787,1.181,3441.3,3441.2,3.26703571]
[1736976590659,1.181,3441.3,3441.2,0.21750214]
[1736976591447,1.181,3441.3,3441.2,3.26700945]
[1736976592370,1.181,3441.3,3441.2,0.4897035]
[1736976600342,1.181,3441.3,3441.2,3.3956635]
[1736976601445,1.181,3441.3,3441.2,0.4897035]
[1736976602289,4.83817,3441.3,3441.2,0.4897035]
[1736976602578,8.73417906,3441.3,3441.2,3.53932271]
[1736976602778,8.73417906,3441.3,3441.2,2.31950766]
[1736976603378,8.73417906,3441.3,3441.2,2.0473063]
[1736976603590,8.73417906,3441.3,3441.2,0.21750214]
[1736976604172,3.65726,3441.2,3441.1,1.82980416]
[1736976604385,3.65726,3441.2,3441.0,1.82980416]
[1736976604386,4.65231296,3441.2,3441.0,1.82980416]
[1736976604604,2.90604,3441.1,3441.0,1.82980416]
[1736976605276,3.68613,3441.0,3440.9,1.82980416]
[1736976605475,0.78,3441.0,3440.9,1.82980416]
[1736976605675,1.181,3441.3,3440.8,1.82980416]
[1736976605970,1.0,3441.3,3441.0,2.90612]
[1736976606177,0.181,3441.2,3441.0,2.90612]
[1736976607184,0.181,3441.2,3441.1,0.27196067]
[1736976607573,0.181,3441.2,3441.1,0.489529]
[1736976609002,1.0,3441.3,3441.1,0.489529]
[1736976609003,1.0,3441.3,3441.2,0.55]
[1736976609226,1.0,3441.3,3441.2,4.03426985]
[1736976609382,1.0,3441.3,3441.2,13.57851467]
[1736976609769,1.0,3441.3,3441.2,16.57851467]
[1736976609968,0.8221,3442.5,3441.2,16.57851467]
[1736976609969,0.81479684,3442.9,3442.4,0.8133]
[1736976610203,0.18,3442.8,3442.5,2.93383752]
[1736976610505,0.18,3442.8,3442.5,4.73164795]
[1736976610716,0.18,3442.8,3442.5,4.76069329]
[1736976611267,0.18,3442.8,3442.7,3.04476325]
[1736976611578,4.21612,3442.8,3442.7,3.04476325]
[1736976611783,7.21612,3442.8,3442.7,2.43326721]
[1736976612232,2.90472,3442.7,3442.3,1.82524049]
[1736976612535,4.31151,3442.8,3442.3,1.82524049]
[1736976612536,3.72697,3442.5,3442.3,1.82524049]
[1736976612765,3.72697,3442.5,3442.1,1.82524049]
[1736976612973,0.372697,3442.4,3442.1,1.82524049]
[1736976613176,0.372697,3442.4,3442.0,1.82524049]
[1736976613312,0.8221,3442.3,3442.0,1.82524049]
[1736976613653,2.90512,3442.2,3442.0,1.82524049]
[1736976613840,2.90512,3442.2,3441.7,1.82524049]
[1736976614051,0.4099917,3442.1,3441.7,1.82524049]
[1736976615628,0.8221,3442.0,3441.7,1.82524049]
[1736976616168,0.8221,3442.0,3441.5,1.82524049]
[1736976616432,0.8221,3442.0,3441.6,0.55]
[1736976617008,3.72743,3442.0,3441.6,0.55]
[1736976617198,0.41374217,3441.9,3441.6,0.55]
[1736976617400,0.18,3441.8,3441.6,0.55]
[1736976617602,0.18,3441.8,3441.5,0.55]
[1736976618429,0.18,3441.8,3441.5,2.37524049]
[1736976619286,0.41374217,3441.9,3441.5,2.37524049]
[1736976619514,0.8221,3442.0,3441.7,0.55]
[1736976619719,0.18,3441.8,3441.4,1.82524049]
[1736976619939,0.18,3441.8,3441.6,1.82524049]
[1736976620423,0.18,3441.8,3441.5,0.55]
[1736976621409,0.18,3441.8,3441.4,0.55]
[1736976622708,0.8172,3441.7,3441.4,0.55]
[1736976623304,4.113036,3441.7,3441.4,0.55]
[1736976623735,4.113036,3441.7,3441.3,0.55]
[1736976625236,1.207466,3441.7,3441.3,0.55]
[1736976625398,3.72277,3441.7,3441.3,2.37524049]
[1736976625901,3.72277,3441.7,3441.3,0.55]
[1736976626797,0.8172,3441.7,3441.3,0.55]
[1736976627936,0.8172,3441.7,3441.3,2.37524049]
[1736976628137,0.8172,3441.7,3441.3,0.55]
[1736976628837,0.18,3441.8,3441.3,0.55]
[1736976628838,0.18,3441.8,3441.3,1.3678]
[1736976629010,0.18,3441.8,3441.3,3.19304049]
[1736976629213,0.18,3441.8,3441.5,0.55]
[1736976631329,0.18,3441.8,3441.5,5.37524049]
[1736976631636,0.18,3441.8,3441.5,2.37524049]
[1736976632938,0.18,3441.8,3441.5,1.82524049]
[1736976633134,0.8172,3442.0,3441.5,3.22793459]
[1736976633322,0.18,3441.9,3441.6,2.90556]
[1736976633512,0.18,3441.9,3441.6,4.73080049]
[1736976634032,0.18,3441.9,3441.8,1.82524049]
[1736976634597,0.18,3441.9,3441.5,1.82524049]
[1736976635402,0.18,3441.9,3441.6,1.82524049]
[1736976637332,0.18,3441.9,3441.5,1.82524049]
[1736976638441,3.66887,3441.8,3441.5,1.82524049]
[1736976638607,3.66887,3441.8,3441.4,2.43326721]
[1736976638608,3.66887,3441.8,3441.4,1.82524049]
[1736976638803,0.7634,3441.8,3441.4,1.82524049]
[1736976639043,0.7634,3441.8,3441.3,1.82524049]
[1736976639558,0.7634,3441.8,3441.4,1.82524049]
[1736976639701,0.7634,3442.5,3441.6,2.90562]
[1736976639900,0.7634,3442.5,3441.7,3.0]
[1736976639901,0.18,3442.4,3441.7,3.0]
[1736976640103,0.18,3442.3,3441.8,1.82524049]
[1736976640354,0.18,3442.2,3441.8,1.82524049]
[1736976640651,0.18,3442.2,3442.1,1.82524049]
[1736976641017,0.18,3442.2,3441.9,1.82524049]
[1736976641534,0.7634,3442.1,3441.9,1.82524049]
[1736976642139,0.7634,3442.1,3441.7,1.82524049]
[1736976642543,0.7634,3442.1,3441.8,1.82524049]
[1736976643433,0.7634,3442.1,3441.7,1.82524049]
[1736976643805,0.7634,3442.1,3441.8,1.82524049]
[1736976646727,0.7634,3442.1,3441.7,1.82524049]
[1736976646923,0.7634,3442.1,3441.8,1.82524049]
[1736976647537,0.7634,3442.1,3441.7,1.82524049]
[1736976647851,1.148246,3442.1,3441.7,1.82524049]
[1736976649858,0.18,3442.2,3441.7,4.73076049]
[1736976650071,0.7722,3442.6,3442.0,2.90525]
[1736976650357,0.18,3442.5,3442.0,4.73049049]
[1736976650951,0.18,3442.4,3442.1,2.09706683]
[1736976651333,0.18,3442.4,3442.2,1.82524049]
[1736976652550,0.18,3442.3,3442.2,1.82524049]
[1736976654519,0.18,3442.3,3442.1,5.33845721]
[1736976655027,0.18,3442.3,3442.1,2.43326721]
[1736976655450,0.7722,3442.6,3442.1,2.43326721]
[1736976655653,0.18,3442.5,3442.2,1.82498816]
[1736976655861,0.18,3442.5,3442.3,1.82498816]
[1736976656763,0.18,3442.5,3442.2,1.82498816]
[1736976657071,0.18,3442.5,3442.1,2.43326721]
[1736976657072,0.18,3442.5,3442.1,1.82498816]
[1736976657759,0.18,3442.5,3442.2,1.82498816]
[1736976659761,0.18,3442.5,3442.3,1.82498816]
[1736976660560,0.7722,3442.6,3442.3,1.82498816]
[1736976660803,0.18,3442.5,3442.4,0.7676]
[1736976661062,0.18,3442.5,3442.3,1.82498816]
[1736976661265,0.18,3442.5,3442.1,2.43326721]
[1736976661266,0.18,3442.5,3442.4,1.82498816]
[1736976661662,0.18,3442.5,3442.3,1.82498816]
[1736976663346,0.9522,3442.5,3442.3,1.82498816]
[1736976663670,0.9522,3442.5,3442.2,1.82498816]
[1736976664639,1.337895,3442.5,3442.2,1.82498816]
[1736976664839,2.90503,3442.3,3442.2,1.82498816]
[1736976665367,2.90503,3442.3,3442.0,1.82498816]
[1736976665876,1.337895,3442.5,3441.9,1.82498816]
[1736976666277,0.9522,3442.5,3441.9,1.82498816]
[1736976666454,0.18,3442.5,3442.1,1.82498816]
[1736976666650,0.7722,3442.4,3442.1,1.82498816]
[1736976667050,0.18,3442.5,3442.1,1.82498816]
[1736976667257,0.18,3442.5,3442.0,4.73026816]
[1736976667463,0.18,3442.5,3442.3,1.82498816]
[1736976669080,0.7722,3442.7,3442.3,1.82498816]
[1736976669081,0.18,3442.4,3442.3,1.82498816]
[1736976670366,0.7722,3443.0,3442.3,2.09692111]
[1736976670569,0.18,3442.9,3442.4,3.50635419]
[1736976670963,0.18,3442.9,3442.6,1.82498816]
[1736976672097,0.7722,3443.0,3442.6,1.82498816]
[1736976672309,2.68760717,3443.8,3442.9,2.90446]
[1736976672310,0.7722,3443.4,3442.9,2.90446]
[1736976672596,0.18,3443.3,3443.0,0.02904275]
[1736976672817,0.18,3443.3,3442.6,4.72970816]
[1736976672818,0.7722,3443.1,3442.6,1.82498816]
[1736976672994,0.7722,3443.1,3443.0,1.82498816]
[1736976673367,0.7722,3443.1,3442.8,1.82498816]
[1736976673594,3.67656,3443.1,3442.8,1.82498816]
[1736976673794,0.7722,3443.1,3442.8,1.82498816]
[1736976673994,3.67664,3443.1,3442.6,1.82498816]
[1736976674198,1.43452064,3443.1,3442.6,1.82498816]
[1736976674381,2.90452,3443.0,3442.6,1.82498816]
[1736976674789,1.43452064,3443.1,3442.6,1.82498816]
[1736976674989,2.90486,3442.6,3442.4,1.82498816]
[1736976675194,2.76656636,3442.8,3442.4,1.82498816]
[1736976675195,3.67706,3442.5,3442.4,1.82498816]
[1736976675409,4.32142264,3442.5,3442.4,1.82498816]
[1736976675608,2.90503,3442.3,3442.2,1.82498816]
[1736976675777,3.67723,3442.3,3442.2,1.82498816]
[1736976676519,0.7722,3442.3,3442.0,1.82498816]
[1736976676804,0.18,3442.2,3442.0,1.82498816]
[1736976677171,0.7722,3442.6,3442.0,1.82498816]
[1736976677505,0.18,3442.5,3442.0,1.82498816]
[1736976677685,0.18,3442.5,3442.0,0.50549067]
[1736976678106,0.18,3442.5,3442.3,1.82498816]
[1736976678409,0.7722,3442.9,3442.3,1.82498816]
[1736976678569,0.18,3442.4,3442.2,2.43326721]
[1736976678774,0.7722,3443.2,3442.0,3.54662652]
[1736976678775,2.90437,3443.1,3442.3,2.43326721]
[1736976679011,0.18,3443.0,3442.3,2.70510231]
[1736976679211,0.18,3443.0,3442.4,0.7676]
[1736976679505,0.18,3443.0,3442.6,1.82526123]
[1736976680177,0.8156,3443.4,3442.7,1.82526123]
[1736976680371,0.18,3443.3,3442.7,1.82526123]
[1736976680706,0.18,3443.3,3442.8,1.82526123]
[1736976681205,0.18,3443.3,3442.9,1.82526123]
[1736976681973,3.72012,3442.9,3442.8,1.82526123]
[1736976682403,6.72012,3442.9,3442.8,1.82526123]
[1736976682610,3.72046,3442.5,3442.4,1.82526123]
[1736976682923,6.48702636,3442.5,3442.4,1.82526123]
[1736976683136,2.90528,3442.0,3441.9,1.82526123]
[1736976683290,3.08528,3442.0,3441.9,1.82526123]
[1736976683513,3.90088,3442.0,3441.7,1.82526123]
[1736976683738,4.209408,3442.0,3441.7,1.82526123]
[1736976683960,2.90541,3441.9,3441.6,1.82526123]
[1736976686244,2.90546,3441.8,3441.6,1.82526123]
[1736976686729,2.90546,3441.8,3441.5,1.82526123]
[1736976686930,1.304128,3442.0,3441.5,1.82526123]
[1736976687129,2.90545,3441.9,3441.5,1.82526123]
[1736976687316,2.90545,3441.9,3441.6,1.82526123]
[1736976687317,3.31251944,3441.9,3441.6,1.82526123]
[1736976687705,3.31251944,3441.9,3441.5,1.82526123]
[1736976688141,2.90545,3441.8,3441.5,1.82526123]
[1736976688547,2.90562,3441.6,3441.5,1.82526123]
[1736976689112,2.90562,3441.6,3441.2,1.82526123]
[1736976689547,2.90562,3441.6,3441.1,1.82526123]
[1736976689714,3.23688894,3441.6,3441.1,1.82526123]
[1736976690426,2.90549,3441.8,3441.1,1.82526123]
[1736976690746,4.209428,3442.0,3441.1,1.82526123]
[1736976690912,3.9009,3442.0,3441.1,1.82526123]
[1736976691321,0.9956,3442.0,3441.2,1.82526123]